bitfinex-derivatives/quotes_SOLF0:USTF0_20260215
["timestamp","ask_amount","ask_price","bid_price","bid_amount"]
[1771126629052,6.27311249,87.53,87.44,57.08238251]
[1771126629557,10.2881,87.519,87.443,50.82665939]
[1771126630361,10.2881,87.519,87.446,50.82665939]
[1771126631750,159.9303,87.578,87.451,50.71981957]
[1771126631954,6.27311249,87.56,87.451,50.71981957]
[1771126632261,104.78,87.559,87.451,50.71981957]
[1771126632760,104.78,87.559,87.453,50.71981957]
[1771126632761,10.2879,87.521,87.453,50.71981957]
[1771126633062,104.78,87.559,87.453,50.71981957]
[1771126633852,6.27311249,87.59,87.491,50.72452265]
[1771126634056,90.9,87.589,87.491,50.72452265]
[1771126634856,10.2829,87.564,87.491,50.72452265]
[1771126635159,90.9,87.589,87.491,50.72452265]
[1771126635564,6.27311249,87.59,87.494,50.74522086]
[1771126635764,90.9,87.604,87.511,50.74522086]
[1771126636852,10.2802,87.587,87.511,50.74522086]
[1771126637459,10.2814,87.576,87.511,50.74522086]
[1771126639964,10.2826,87.566,87.511,50.74522086]
[1771126641268,10.2805,87.584,87.511,50.74522086]
[1771126643867,19.6695513,87.596,87.511,50.74522086]
[1771126644172,10.2791,87.596,87.511,50.74522086]
[1771126644974,10.2791,87.596,87.515,50.92683715]
[1771126645872,10.2791,87.596,87.516,10.2884]
[1771126646073,10.2791,87.596,87.517,50.91523227]
[1771126646469,10.2791,87.596,87.52,50.91523227]
[1771126647374,10.2801,87.587,87.52,50.91523227]
[1771126647564,9.3904513,87.6,87.52,50.91523227]
[1771126647768,452.66,87.603,87.52,50.91523227]
[1771126647964,9.3904513,87.602,87.52,50.91523227]
[1771126649268,6.27311249,87.61,87.52,50.91523227]
[1771126649462,453.78,87.601,87.52,50.91523227]
[1771126649663,9.3904513,87.6,87.52,50.91523227]
[1771126650971,10.2821,87.57,87.52,50.91523227]
[1771126651167,260.55295651,87.628,87.52,50.91523227]
[1771126651168,6.27311249,87.59,87.52,50.91523227]
[1771126651373,360.72,87.589,87.52,50.91523227]
[1771126651575,6.27311249,87.59,87.499,50.9233623]
[1771126651576,6.27311249,87.57,87.499,50.9233623]
[1771126652369,10.2856,87.541,87.499,50.9233623]
[1771126652574,6.27311249,87.55,87.459,21.32093118]
[1771126652816,6.27311249,87.55,87.454,21.32093118]
[1771126652979,90.92,87.549,87.454,21.32093118]
[1771126653481,93.86,87.548,87.454,21.32093118]
[1771126653682,9.38631688,87.547,87.45,6.27311249]
[1771126654278,95.58,87.546,87.45,6.27311249]
[1771126654484,9.38631688,87.545,87.45,6.27311249]
[1771126654783,20.5639,87.572,87.45,6.27311249]
[1771126654784,20.5639,87.572,87.471,42.15382495]
[1771126655076,97.02,87.563,87.471,42.15382495]
[1771126655275,9.38873706,87.562,87.471,42.15382495]
[1771126655478,10.2866,87.532,87.471,42.15382495]
[1771126657078,6.27311249,87.56,87.471,42.15382495]
[1771126657079,9.38873706,87.562,87.471,42.15382495]
[1771126657279,97.02,87.563,87.471,42.15382495]
[1771126657481,9.3883965,87.562,87.473,42.16132817]
[1771126657681,90.92,87.562,87.473,42.16132817]
[1771126658389,9.38781627,87.561,87.473,42.16132817]
[1771126658785,90.92,87.565,87.473,42.16132817]
[1771126659384,90.92,87.565,87.477,42.16966942]
[1771126659597,10.2846,87.549,87.484,42.16966942]
[1771126659890,90.92,87.565,87.484,42.16966942]
[1771126660088,97.19311249,87.57,87.491,42.16966942]
[1771126660891,10.2834,87.559,87.491,42.16966942]
[1771126661900,10.2834,87.559,87.493,42.1750362]
[1771126662096,10.282,87.571,87.493,42.1750362]
[1771126662303,10.282,87.571,87.499,42.1750362]
[1771126663496,10.283,87.563,87.499,42.1750362]
[1771126663699,6.27311249,87.6,87.511,42.25856855]
[1771126663896,9.39951729,87.605,87.511,42.25856855]
[1771126664603,462.67951729,87.605,87.511,42.25856855]
[1771126664791,10.2798,87.59,87.513,42.25856855]
[1771126666404,10.2808,87.581,87.513,42.25856855]
[1771126666606,9.39721243,87.593,87.513,42.25856855]
[1771126666805,454.4,87.592,87.513,42.25856855]
[1771126667100,9.39721243,87.591,87.513,42.25856855]
[1771126667496,454.66,87.59,87.513,42.25856855]
[1771126667696,10.2827,87.565,87.513,42.25856855]
[1771126669706,10.2845,87.55,87.513,23.01646855]
[1771126670007,454.4,87.574,87.513,23.01646855]
[1771126670808,10.2832,87.561,87.513,23.01646855]
[1771126671302,454.4,87.574,87.513,23.01646855]
[1771126672303,9.31109249,87.573,87.513,23.01646855]
[1771126672801,10.2842,87.553,87.513,23.01646855]
[1771126677416,10.2872,87.527,87.465,21.32093118]
[1771126677706,159.9118,87.588,87.465,21.32093118]
[1771126677707,90.94,87.526,87.465,32.66675509]
[1771126677912,90.94,87.526,87.42,6.27311249]
[1771126677913,10.2889,87.512,87.446,32.66675509]
[1771126678297,9.31109249,87.524,87.415,1.98907154]
[1771126678298,9.31109249,87.524,87.449,32.66675509]
[1771126678503,10.2877,87.522,87.449,32.66675509]
[1771126678703,91.86,87.529,87.449,32.66675509]
[1771126679004,9.31109249,87.528,87.449,32.66675509]
[1771126679305,10.2892,87.51,87.449,32.66675509]
[1771126680303,10.2892,87.51,87.433,32.70840092]
[1771126680304,10.2906,87.497,87.433,32.70840092]
[1771126680607,6.27311249,87.49,87.416,32.70840092]
[1771126681000,15.58256805,87.49,87.416,32.70840092]
[1771126681409,10.2917,87.489,87.416,32.70840092]
[1771126683006,10.2931,87.477,87.416,32.70840092]
[1771126683209,6.27746269,87.5,87.416,32.70840092]
[1771126683407,90.94,87.499,87.416,32.70840092]
[1771126683705,10.2916,87.49,87.416,32.70840092]
[1771126684009,6.27746269,87.52,87.421,32.61103356]
[1771126684510,90.94,87.519,87.421,32.61103356]
[1771126684807,100.2079582,87.518,87.402,32.61103356]
[1771126685114,6.27746269,87.48,87.402,32.61103356]
[1771126685415,160.0363,87.52,87.402,32.61103356]
[1771126685416,10.2941,87.468,87.402,32.61103356]
[1771126686010,143.9,87.487,87.402,32.61103356]
[1771126686011,10.2956,87.455,87.402,32.61103356]
[1771126686409,6.27746269,87.48,87.402,32.61103356]
[1771126686609,6.27746269,87.46,87.385,32.63235444]
[1771126686809,160.1054,87.482,87.366,32.63235444]
[1771126687005,160.1205,87.474,87.366,32.63235444]
[1771126687206,427.32335923,87.473,87.366,32.63235444]
[1771126687411,9.24335923,87.472,87.366,32.63235444]
[1771126687607,10.2955,87.457,87.366,32.63235444]
[1771126688008,371.36,87.471,87.381,32.64908744]
[1771126688408,6.27746269,87.48,87.381,32.64908744]
[1771126688910,307.42,87.479,87.381,42.95328744]
[1771126689116,6.27746269,87.48,87.382,32.64908744]
[1771126689409,281.5,87.481,87.401,32.69761379]
[1771126689612,10.2885,87.516,87.421,32.69761379]
[1771126689910,6.27746269,87.49,87.421,32.69761379]
[1771126690117,90.94,87.502,87.421,32.69761379]
[1771126690410,90.94,87.503,87.421,32.69761379]
[1771126691318,90.96,87.502,87.421,32.69761379]
[1771126691711,10.2904,87.5,87.421,32.69761379]
[1771126691912,6.27746269,87.53,87.421,32.69761379]
[1771126692213,9.22355253,87.549,87.407,32.74057484]
[1771126692419,6.27746269,87.49,87.391,32.74057484]
[1771126692720,453.96,87.489,87.391,32.74057484]
[1771126693011,10.2928,87.479,87.391,32.74057484]
[1771126693316,410.68,87.478,87.391,32.74057484]
[1771126693517,10.2943,87.466,87.391,32.74057484]
[1771126694112,10.2959,87.453,87.391,32.74057484]
[1771126695417,231.76,87.457,87.371,32.86145977]
[1771126696217,10.295,87.46,87.371,32.86145977]
[1771126696717,10.295,87.46,87.373,32.86145977]
[1771126698916,10.2967,87.446,87.373,32.86145977]
[1771126699316,10.2967,87.446,87.355,1.99064739]
[1771126699317,10.2997,87.421,87.355,1.99064739]
[1771126699616,10.2997,87.421,87.293,34.28]
[1771126699617,183.34,87.44,87.354,32.87541865]
[1771126699916,189.61746269,87.44,87.354,32.87541865]
[1771126700418,10.3014,87.406,87.354,32.87541865]
[1771126700623,6.27746269,87.42,87.354,32.87541865]
[1771126701216,10.3012,87.408,87.354,32.87541865]
[1771126701628,160.1459,87.46,87.354,32.87541865]
[1771126701824,96.58,87.459,87.354,32.87541865]
[1771126702024,1.99136503,87.47,87.325,1.99139352]
[1771126702025,6.27746269,87.47,87.371,32.68401032]
[1771126702223,224.72,87.469,87.371,32.68401032]
[1771126702424,10.2985,87.431,87.337,32.68401032]
[1771126702623,207.25746269,87.43,87.341,32.68401032]
[1771126703124,200.98,87.43,87.341,32.68401032]
[1771126703628,10.2977,87.438,87.341,32.68401032]
[1771126703830,6.27746269,87.45,87.361,32.63932044]
[1771126704122,172.16,87.449,87.361,32.63932044]
[1771126704317,6.27746269,87.45,87.361,32.63932044]
[1771126704521,90.96,87.449,87.361,32.63932044]
[1771126704724,10.2983,87.432,87.361,32.63932044]
[1771126705527,10.2968,87.445,87.361,32.63932044]
[1771126705730,101.2568,87.445,87.361,32.63932044]
[1771126706227,10.2954,87.458,87.361,32.63932044]
[1771126706625,160.1514,87.457,87.332,32.68251875]
[1771126706827,160.1382,87.464,87.332,32.68251875]
[1771126706828,10.3007,87.412,87.332,32.68251875]
[1771126707624,10.2992,87.425,87.341,32.68867514]
[1771126707825,6.27746269,87.44,87.341,32.68867514]
[1771126708422,10.3005,87.413,87.341,32.68867514]
[1771126708820,10.3009,87.41,87.341,12.89687514]
[1771126709021,6.27746269,87.41,87.341,12.89687514]
[1771126709536,6.27746269,87.37,87.27,23.44461794]
[1771126709731,6.27746269,87.41,87.295,1.99186654]
[1771126709926,10.3044,87.381,87.3,6.27746269]
[1771126710424,10.3044,87.381,87.296,10.3142]
[1771126710626,90.98,87.409,87.3,6.27746269]
[1771126710826,90.98,87.408,87.301,22.9036038]
[1771126711131,10.3049,87.377,87.301,22.9036038]
[1771126711428,160.0877,87.492,87.331,23.02594431]
[1771126711730,14.03236945,87.523,87.304,160.4296]
[1771126711731,6.27746269,87.49,87.391,23.02594431]
[1771126712124,160.0211,87.528,87.391,23.02594431]
[1771126712324,10.2899,87.504,87.411,23.02594431]
[1771126712528,90.98,87.513,87.411,23.02594431]
[1771126712723,6.27746269,87.48,87.411,23.02594431]
[1771126713129,6.27746269,87.46,87.388,22.81296239]
[1771126713525,6.27746269,87.44,87.321,99.54]
[1771126713731,6.27746269,87.42,87.322,22.81296239]
[1771126713933,6.27746269,87.44,87.341,22.81296239]
[1771126714135,90.98,87.439,87.341,22.81296239]
[1771126714435,96.22,87.438,87.341,22.81296239]
[1771126715528,10.2977,87.437,87.341,22.81296239]
[1771126716234,100.8,87.436,87.341,22.81296239]
[1771126716435,10.2977,87.437,87.341,22.81296239]
[1771126716638,104.72,87.436,87.341,22.81296239]
[1771126717335,10.2983,87.432,87.341,22.81296239]
[1771126720234,10.2983,87.432,87.315,171.17904659]
[1771126720235,90.98,87.449,87.361,22.74601402]
[1771126720638,10.3,87.418,87.341,22.74601402]
[1771126721029,160.1299,87.469,87.341,22.74601402]
[1771126721234,10.2984,87.432,87.351,22.74878839]
[1771126721430,6.27746269,87.45,87.351,22.74878839]
[1771126721838,10.2966,87.447,87.355,22.74878839]
[1771126722342,10.2966,87.447,87.371,22.74892253]
[1771126722535,10.298,87.435,87.371,22.74892253]
[1771126724844,10.2965,87.448,87.371,22.74892253]
[1771126725939,6.27746269,87.47,87.371,22.74892253]
[1771126725940,10.2951,87.46,87.371,22.74892253]
[1771126726343,10.2951,87.46,87.376,22.71288154]
[1771126727146,10.2951,87.46,87.379,22.65841454]
[1771126727648,10.2967,87.446,87.379,22.65841454]
[1771126728541,10.2979,87.436,87.379,22.65841454]
[1771126729640,10.2964,87.448,87.379,22.65841454]
[1771126729939,10.2964,87.448,87.364,21.32093118]
[1771126729940,6.27746269,87.47,87.381,22.69547128]
[1771126730139,6.27746269,87.47,87.396,10.3025]
[1771126730140,10.2939,87.47,87.396,10.3025]
[1771126730346,6.27746269,87.49,87.401,22.69547128]
[1771126730648,9.22448898,87.489,87.401,22.69547128]
[1771126730846,9.22448898,87.488,87.401,22.69547128]
[1771126731050,10.2951,87.46,87.401,22.69547128]
[1771126731243,9.22448898,87.489,87.401,22.69547128]
[1771126731440,10.295,87.461,87.401,22.69547128]
[1771126731639,99.64,87.482,87.401,22.69547128]
[1771126731845,20.5727,87.534,87.381,21.32093118]
[1771126731846,6.27746269,87.51,87.421,22.72814204]
[1771126732146,6.27746269,87.51,87.42,6.27746269]
[1771126732147,6.27746269,87.51,87.425,22.72814204]
[1771126732344,6.27746269,87.53,87.425,22.72814204]
[1771126732545,103.66,87.529,87.425,22.72814204]
[1771126732745,9.22301233,87.528,87.425,22.72814204]
[1771126733155,10.288,87.52,87.44,22.71618786]
[1771126733352,6.27746269,87.51,87.44,22.71618786]
[1771126733652,276.86,87.513,87.44,22.71618786]
[1771126733839,6.27746269,87.51,87.44,22.71618786]
[1771126734441,10.2906,87.498,87.44,22.71618786]
[1771126734654,6.27746269,87.51,87.44,22.71618786]
[1771126734848,9.22301233,87.512,87.44,22.71618786]
[1771126735053,6.27746269,87.51,87.44,22.71618786]
[1771126736046,449.52,87.518,87.44,22.71618786]
[1771126736246,10.2885,87.516,87.442,22.71071128]
[1771126736745,449.52,87.518,87.442,22.71071128]
[1771126737058,402.36,87.528,87.442,22.71071128]
[1771126737353,9.21298424,87.527,87.442,22.71071128]
[1771126737648,402.36,87.528,87.442,22.71071128]
[1771126737850,10.2881,87.519,87.446,22.71863318]
[1771126739156,10.2881,87.519,87.452,22.71863318]
[1771126740447,9.20699671,87.538,87.452,22.71863318]
[1771126740856,6.27746269,87.52,87.452,22.71863318]
[1771126741151,6.27746269,87.52,87.369,35.21036274]
[1771126741152,10.2928,87.479,87.434,22.71493041]
[1771126743557,6.27746269,87.48,87.415,22.68294522]
[1771126743757,6.27746269,87.48,87.398,22.68294522]
[1771126744058,214.8,87.479,87.398,22.68294522]
[1771126744259,10.2963,87.45,87.398,22.68294522]
[1771126746154,10.2975,87.439,87.38,22.69200248]
[1771126746655,6.28127407,87.46,87.362,22.69200248]
[1771126746656,10.3001,87.417,87.362,22.69200248]
[1771126747259,6.28127407,87.45,87.366,22.69190074]
[1771126748561,266.08,87.449,87.366,22.69190074]
[1771126748756,9.18251172,87.448,87.366,22.69190074]
[1771126748959,10.3014,87.407,87.366,22.69190074]
[1771126749160,9.18251172,87.448,87.366,22.69190074]
[1771126749759,266.08,87.449,87.366,22.69190074]
[1771126750362,398.16,87.448,87.366,22.69190074]
[1771126750860,10.3001,87.418,87.366,22.69190074]
[1771126753759,10.2988,87.428,87.366,22.69190074]
[1771126758259,6.28127407,87.48,87.35,6.28127407]
[1771126758260,10.2976,87.438,87.368,22.66176197]
[1771126758668,6.28127407,87.46,87.368,22.66176197]
[1771126758866,10.2987,87.429,87.368,22.66176197]
[1771126759457,170.8,87.459,87.368,22.66176197]
[1771126759660,10.2976,87.439,87.37,22.65916646]
[1771126759861,6.28127407,87.46,87.37,22.65916646]
[1771126760057,10.2934,87.474,87.381,22.65916646]
[1771126760259,6.28127407,87.5,87.405,22.65916646]
[1771126760764,6.28127407,87.5,87.408,22.65916646]
[1771126761462,10.2919,87.487,87.421,22.6680215]
[1771126761659,6.28127407,87.5,87.421,22.6680215]
[1771126762066,10.2908,87.488,87.421,22.6680215]
[1771126763264,10.2895,87.499,87.421,22.6680215]
[1771126763865,10.2905,87.49,87.421,22.6680215]
[1771126765769,16.57057407,87.5,87.422,22.66455182]
[1771126765960,10.2893,87.5,87.422,22.66455182]
[1771126766560,20.564,87.563,87.422,22.66455182]
[1771126766768,10.2835,87.55,87.473,22.66455182]
[1771126767070,123.3,87.555,87.473,22.66455182]
[1771126767270,6.28127407,87.56,87.473,22.66455182]
[1771126767271,10.2846,87.54,87.473,22.66455182]
[1771126768269,10.2858,87.53,87.473,22.66455182]
[1771126770567,91.04,87.559,87.473,22.66455182]
[1771126771369,10.2875,87.515,87.473,22.66455182]
[1771126771566,91.04,87.544,87.461,22.46510342]
[1771126771765,6.28127407,87.54,87.461,22.46510342]
[1771126772167,10.2885,87.507,87.461,22.46510342]
[1771126772366,6.28127407,87.54,87.461,22.46510342]
[1771126772565,91.04,87.547,87.461,22.46510342]
[1771126773773,10.2869,87.52,87.461,22.46510342]
[1771126774169,91.04,87.547,87.461,22.46510342]
[1771126774364,10.2879,87.512,87.461,22.46510342]
[1771126774572,6.28127407,87.54,87.461,22.46510342]
[1771126775264,379.28,87.539,87.461,22.46510342]
[1771126776270,6.28127407,87.54,87.461,22.46510342]
[1771126776964,10.2887,87.505,87.461,22.46510342]
[1771126778273,159.9311,87.569,87.461,22.46510342]
[1771126778975,10.2876,87.515,87.461,22.46510342]
[1771126779174,6.28127407,87.55,87.461,22.46510342]
[1771126779377,97.32127407,87.55,87.461,22.46510342]
[1771126779978,10.2885,87.507,87.461,22.46510342]
[1771126780179,91.04,87.545,87.461,22.46510342]
[1771126780776,362.82,87.544,87.461,22.46510342]
[1771126781877,10.289,87.503,87.461,22.46510342]
[1771126782079,362.82,87.544,87.461,22.46510342]
[1771126783074,10.2865,87.524,87.461,22.46510342]
[1771126784583,10.2875,87.515,87.461,22.46510342]
[1771126784883,20.5549,87.601,87.481,12.12660276]
[1771126785083,6.28127407,87.58,87.481,12.12660276]
[1771126785282,451.42127407,87.58,87.488,12.12267773]
[1771126786180,10.2822,87.56,87.488,12.12267773]
[1771126786684,10.2838,87.547,87.49,6.28127407]
[1771126786984,10.2838,87.547,87.491,12.12267773]
[1771126788483,10.2827,87.557,87.492,10.2902]
[1771126788785,445.14,87.58,87.493,12.10338715]
[1771126788988,10.2836,87.548,87.493,12.10338715]
[1771126789383,20.5483,87.63,87.511,12.11337644]
[1771126789597,451.80127407,87.61,87.511,12.11337644]
[1771126790286,445.82,87.593,87.511,12.11337644]
[1771126790484,10.2813,87.569,87.511,12.11337644]
[1771126790685,446.02,87.599,87.511,12.11337644]
[1771126791088,10.2807,87.573,87.511,12.11337644]
[1771126791483,10.2793,87.585,87.511,12.11337644]
[1771126792083,10.2805,87.575,87.511,12.11337644]
[1771126792286,6.28127407,87.59,87.511,12.11337644]
[1771126792589,446.02,87.599,87.511,12.11337644]
[1771126792590,10.2816,87.566,87.511,12.11337644]
[1771126793585,318.7,87.577,87.511,12.11337644]
[1771126793792,10.2804,87.576,87.511,12.11337644]
[1771126793991,6.28127407,87.59,87.511,12.11337644]
[1771126794194,331.18,87.589,87.511,12.11337644]
[1771126794788,10.2799,87.58,87.511,12.11337644]
[1771126795286,331.18,87.589,87.511,12.11337644]
[1771126796200,6.28127407,87.59,87.511,12.11337644]
[1771126796497,292.66,87.589,87.511,12.11337644]
[1771126796692,10.2812,87.569,87.511,12.11337644]
[1771126797496,10.2823,87.56,87.491,12.07530026]
[1771126797991,6.28127407,87.57,87.491,12.07530026]
[1771126798192,34.28,87.612,87.454,91.04]
[1771126798193,34.28,87.612,87.511,12.07530026]
[1771126798195,6.28127407,87.61,87.511,12.07530026]
[1771126798389,211.6,87.601,87.511,12.07530026]
[1771126798785,6.28127407,87.59,87.511,12.07530026]
[1771126799994,10.2799,87.58,87.511,12.07530026]
[1771126800491,10.2809,87.571,87.511,12.07530026]
[1771126802998,6.28127407,87.59,87.511,12.07530026]
[1771126803594,10.2825,87.558,87.511,12.07530026]
[1771126806197,10.279,87.588,87.531,11.89636402]
[1771126806502,2.3394835,87.59,87.531,11.89636402]
[1771126806796,2.3394835,87.59,87.54,2.3394835]
[1771126807001,6.26036348,87.64,87.541,11.89636402]
[1771126807402,377.06,87.639,87.541,11.89636402]
[1771126807900,10.2767,87.607,87.541,11.89636402]
[1771126808396,170.44990407,87.655,87.541,11.89636402]
[1771126808397,288.42,87.634,87.541,11.89636402]
[1771126808596,288.42,87.634,87.542,14.03357738]
[1771126808802,288.42,87.634,87.543,11.88177879]
[1771126809204,6.26036348,87.64,87.543,11.88177879]
[1771126809502,444.16,87.639,87.543,11.88177879]
[1771126809702,10.2756,87.617,87.543,11.88177879]
[1771126809901,10.2756,87.617,87.545,11.95857012]
[1771126810098,10.2756,87.617,87.546,11.95857012]
[1771126810494,10.2756,87.617,87.533,21.32093118]
[1771126810495,319.7185,87.608,87.51,34.28]
[1771126810700,6.26036348,87.56,87.483,69.26045002]
[1771126810895,6.26036348,87.54,87.483,69.26045002]
[1771126811095,34.28,87.538,87.483,69.26045002]
[1771126811304,10.2853,87.534,87.483,69.26045002]
[1771126811501,445.44,87.537,87.483,69.26045002]
[1771126811700,445.44,87.537,87.44,6.26036348]
[1771126811701,10.287,87.519,87.44,6.26036348]
[1771126812709,10.2908,87.488,87.4,6.26036348]
[1771126813002,404.32,87.521,87.4,6.26036348]
[1771126813203,10.2907,87.488,87.4,6.26036348]
[1771126813401,91.04,87.487,87.4,6.26036348]
[1771126813907,10.2912,87.484,87.401,60.69383754]
[1771126818207,10.2895,87.498,87.421,60.76934012]
[1771126818406,159.9508,87.558,87.421,60.76934012]
[1771126818407,6.26036348,87.53,87.421,60.76934012]
[1771126818602,6.26036348,87.53,87.441,60.76934012]
[1771126818807,10.2895,87.499,87.441,60.76934012]
[1771126819201,6.26036348,87.51,87.441,60.76934012]
[1771126819403,10.289,87.503,87.441,60.76934012]
[1771126819812,6.26036348,87.51,87.441,60.76934012]
[1771126820014,91.06,87.52,87.441,60.76934012]
[1771126820313,91.06,87.52,87.36,60.78007331]
[1771126820512,6.26036348,87.48,87.376,60.78007331]
[1771126820714,6.26036348,87.46,87.376,60.78007331]
[1771126820908,91.06,87.465,87.376,60.78007331]
[1771126821104,6.26036348,87.47,87.376,60.78007331]
[1771126821303,91.06,87.469,87.381,60.93077592]
[1771126821512,6.26036348,87.47,87.387,60.93077592]
[1771126822209,6.26036348,87.49,87.401,60.93077592]
[1771126823309,100.46036348,87.49,87.401,60.93077592]
[1771126824210,6.26036348,87.49,87.401,60.93077592]
[1771126824413,96.94,87.489,87.401,60.93077592]
[1771126824609,96.94,87.489,87.403,61.00756045]
[1771126825819,96.94,87.489,87.405,61.00986527]
[1771126826017,6.26036348,87.51,87.411,61.00986527]
[1771126826520,6.26036348,87.49,87.413,61.00986527]
[1771126827217,91.06,87.509,87.413,61.00986527]
[1771126827414,6.26036348,87.49,87.413,61.00986527]
[1771126827818,10.2906,87.489,87.413,61.00986527]
[1771126828220,93.78,87.499,87.421,61.0325976]
[1771126828421,10.2891,87.502,87.421,61.0325976]
[1771126828816,6.26036348,87.51,87.421,61.0325976]
[1771126829020,96.3,87.509,87.421,61.0325976]
[1771126829320,10.2877,87.514,87.431,60.98069879]
[1771126830824,10.2862,87.526,87.433,60.98069879]
[1771126831029,13.94668105,87.602,87.43,6.26036348]
[1771126831030,6.26036348,87.55,87.47,6.26036348]
[1771126831320,91.06,87.576,87.491,60.97884397]
[1771126831722,10.2813,87.568,87.491,60.97884397]
[1771126831919,449.64036348,87.57,87.491,60.97884397]
[1771126832321,443.62,87.569,87.491,60.97884397]
[1771126832626,6.26036348,87.57,87.491,60.97884397]
[1771126832627,443.8,87.568,87.491,60.97884397]
[1771126832827,6.26036348,87.57,87.491,60.97884397]
[1771126833027,403.1,87.569,87.491,60.97884397]
[1771126833327,10.2834,87.55,87.491,60.97884397]
[1771126837031,10.2847,87.54,87.472,60.99644348]
[1771126838540,10.2829,87.554,87.474,60.77496382]
[1771126838729,256.6,87.558,87.48,6.26036348]
[1771126838932,223.0,87.565,87.481,60.77496382]
[1771126839827,10.2836,87.549,87.481,60.77496382]
[1771126847041,91.06,87.569,87.505,60.75479197]
[1771126847240,10.281,87.57,87.505,60.75479197]
[1771126847435,437.3,87.595,87.505,60.75479197]
[1771126848743,10.28,87.579,87.506,10.2885]
[1771126848942,10.28,87.579,87.507,60.75131673]
[1771126849142,437.3,87.595,87.507,60.75131673]
[1771126849746,6.26036348,87.58,87.507,60.75131673]
[1771126850742,10.2832,87.552,87.507,60.75131673]
[1771126851846,6.26036348,87.58,87.48,6.26036348]
[1771126851847,10.2841,87.544,87.491,60.69098157]
[1771126854849,10.2851,87.536,87.491,60.69098157]
[1771126856246,10.2838,87.547,87.491,60.69098157]
[1771126857353,10.2824,87.559,87.491,60.69098157]
[1771126859357,10.284,87.545,87.491,60.69098157]
[1771126859557,105.56,87.574,87.491,60.69098157]
[1771126860776,10.2829,87.554,87.491,60.69098157]
[1771126860952,34.3,87.596,87.501,60.72327478]
[1771126861152,43.64839283,87.596,87.501,60.72327478]
[1771126861459,34.3,87.594,87.501,60.72327478]
[1771126861657,43.64839283,87.594,87.501,60.72327478]
[1771126861858,10.2806,87.574,87.505,60.73054999]
[1771126862450,10.2806,87.574,87.507,60.73054999]
[1771126862961,10.2806,87.574,87.508,10.2883]
[1771126863158,10.2796,87.583,87.521,60.95208127]
[1771126865959,10.2796,87.583,87.454,28.29749063]
[1771126865960,6.26036348,87.55,87.481,60.93832855]
[1771126866159,6.26036348,87.55,87.461,60.93832855]
[1771126866354,10.2852,87.535,87.461,60.93832855]
[1771126866560,91.08,87.547,87.461,60.93832855]
[1771126867261,6.26036348,87.56,87.461,60.93832855]
[1771126867457,91.08,87.559,87.461,60.93832855]
[1771126867663,9.35426856,87.558,87.461,60.93832855]
[1771126867961,91.48,87.557,87.461,60.93832855]
[1771126868165,6.26036348,87.54,87.461,60.93832855]
[1771126868664,10.287,87.52,87.461,60.93832855]
[1771126868861,6.27033775,87.55,87.461,60.93832855]
[1771126869063,91.08,87.549,87.461,60.93832855]
[1771126869458,9.3636927,87.548,87.461,60.93832855]
[1771126869860,10.2849,87.538,87.461,60.93832855]
[1771126873561,10.2862,87.526,87.461,60.93832855]
[1771126875565,6.27033775,87.51,87.426,61.07606907]
[1771126875876,91.08,87.515,87.431,61.07606907]
[1771126876369,10.2877,87.514,87.435,61.07606907]
[1771126876866,9.39353742,87.514,87.435,61.07606907]
[1771126877059,6.27033775,87.51,87.435,61.07606907]
[1771126877262,281.63353742,87.509,87.435,61.07606907]
[1771126877464,9.39353742,87.508,87.435,61.07606907]
[1771126877662,9.39353742,87.507,87.435,61.07606907]
[1771126877869,9.39353742,87.506,87.435,61.07606907]
[1771126878060,9.39353742,87.505,87.435,61.07606907]
[1771126878259,10.2901,87.493,87.435,61.07606907]
[1771126879366,10.2912,87.484,87.435,61.07606907]
[1771126879671,9.39353742,87.508,87.435,61.07606907]
[1771126879872,10.2899,87.495,87.435,61.07606907]
[1771126881064,10.2912,87.484,87.435,61.07606907]
[1771126881975,6.27033775,87.5,87.435,61.07606907]
[1771126881976,10.2898,87.496,87.435,61.07606907]
[1771126885471,218.92,87.516,87.435,61.07606907]
[1771126885674,6.27033775,87.54,87.45,6.27033775]
[1771126885874,6.27033775,87.56,87.451,61.0547198]
[1771126886074,10.2835,87.549,87.471,61.0547198]
[1771126889179,10.2823,87.559,87.474,61.03478338]
[1771126890375,10.2835,87.549,87.476,61.03675693]
[1771126891571,107.18,87.56,87.479,61.03501506]